bitfinex-derivatives/quotes_BNBF0:USTF0_20250329
["timestamp","ask_amount","ask_price","bid_price","bid_amount"]
[1743249774065,0.93661705,601.26,600.51,0.27305758]
[1743249774269,0.93661705,601.26,600.52,0.27305758]
[1743249774569,0.93661705,601.25,600.51,0.27305758]
[1743249774766,2.20961705,601.25,600.52,0.27305625]
[1743249774967,0.93661705,601.24,600.53,0.27305625]
[1743249775672,0.93661705,601.23,600.53,0.27305625]
[1743249776071,1.273,601.25,600.52,1.23078804]
[1743249776375,1.21938173,601.24,600.53,0.27308931]
[1743249776570,1.21938173,601.23,600.53,0.27308931]
[1743249776770,1.21938173,601.22,600.53,0.27308931]
[1743249777067,1.21938173,601.21,600.53,0.27308931]
[1743249777372,1.21938173,601.2,600.53,0.27308931]
[1743249777569,2.16418892,601.19,600.53,0.27308931]
[1743249777768,1.21938173,601.18,600.53,0.27308931]
[1743249777971,1.21938173,601.17,600.54,0.27310584]
[1743249778171,1.21938173,601.16,600.54,0.27310584]
[1743249778373,2.06080719,601.17,600.54,0.27310584]
[1743249778575,1.22154969,601.16,600.54,0.27310584]
[1743249778873,0.94480719,601.16,600.54,0.27310584]
[1743249779274,0.94480719,601.15,600.54,0.27310584]
[1743249779574,0.94480719,601.15,600.57,1.23078804]
[1743249779774,0.94480719,601.14,600.58,0.27310584]
[1743249779974,1.97880719,601.14,600.58,0.27310584]
[1743249780170,0.94480719,601.13,600.58,0.27310584]
[1743249780574,1.034,601.14,600.58,0.27310584]
[1743249782077,1.034,601.14,600.59,1.23078804]
[1743249782271,1.034,601.14,600.6,0.27310584]
[1743249784175,1.034,601.14,600.59,1.23078804]
[1743249784375,1.034,601.14,600.6,0.27302992]
[1743249784577,1.034,601.14,600.73,1.23078804]
[1743249786676,1.034,601.14,600.74,0.27300966]
[1743249786877,1.034,601.14,600.72,1.23078804]
[1743249790779,1.034,601.14,600.67,1.23078804]
[1743249791077,1.034,601.14,600.68,0.27300911]
[1743249791879,1.034,601.14,600.67,1.23078804]
[1743249792081,1.034,601.14,600.68,0.27301188]
[1743249792580,1.034,601.14,600.67,1.23078804]
[1743249793182,1.034,601.14,600.69,1.23078804]
[1743249795283,1.034,601.14,600.7,0.27304092]
[1743249795884,1.034,601.14,600.71,0.27304092]
[1743249796082,1.034,601.14,600.68,0.27304092]
[1743249797580,1.98229432,601.13,600.67,2.53078804]
[1743249797784,1.98229432,601.12,600.69,1.23078804]
[1743249797982,1.98229432,601.11,600.69,1.23078804]
[1743249798177,1.98229432,601.1,600.69,1.23078804]
[1743249798380,1.98257358,601.09,600.69,1.23078804]
[1743249798580,1.98257358,601.08,600.69,1.23078804]
[1743249798780,1.98257358,601.07,600.69,1.23078804]
[1743249798984,1.98240678,601.06,600.69,1.23078804]
[1743249799184,1.98240678,601.05,600.69,1.23078804]
[1743249799384,1.98201899,601.04,600.69,1.23078804]
[1743249799686,3.18278034,601.03,600.69,1.23078804]
[1743249799881,3.18278034,601.02,600.69,1.23078804]
[1743249800083,1.98201899,601.01,600.69,1.23078804]
[1743249800280,0.95490579,601.02,600.67,1.3]
[1743249800281,1.98201899,601.0,600.67,1.3]
[1743249800486,1.98201899,600.99,600.67,1.3]
[1743249800688,1.23184395,600.98,600.67,1.3]
[1743249800987,1.23184395,600.97,600.67,1.3]
[1743249801187,1.23277042,600.96,600.67,1.3]
[1743249801486,2.18817002,600.95,600.67,1.3]
[1743249801783,1.23326423,600.94,600.67,1.3]
[1743249801986,1.23326423,600.93,600.67,1.3]
[1743249802281,1.23326423,600.92,600.67,1.3]
[1743249802486,1.23326423,600.91,600.67,1.3]
[1743249802686,0.95490579,600.92,600.67,1.3]
[1743249802880,1.23334907,600.91,600.67,1.3]
[1743249803081,2.18825486,600.9,600.67,1.3]
[1743249803283,1.23332294,600.89,600.67,1.3]
[1743249803483,1.23332294,600.88,600.67,1.3]
[1743249803682,1.23332294,600.87,600.67,1.3]
[1743249803987,0.95490579,600.88,600.45,1.23078804]
[1743249804181,0.95490579,600.88,600.46,0.27319255]
[1743249804385,2.18823016,600.87,600.46,0.27319255]
[1743249804585,0.95490579,600.87,600.45,1.23078804]
[1743249804785,0.95490579,600.87,600.46,0.27319075]
[1743249804982,0.95490579,600.86,600.46,0.27319075]
[1743249805288,0.95490579,600.86,600.36,1.23078804]
[1743249805482,0.95490579,600.86,600.37,0.27319115]
[1743249805684,0.95490579,600.85,600.42,0.28969461]
[1743249805891,0.95490579,600.85,600.43,0.27319115]
[1743249806286,0.845,600.89,600.43,0.27319115]
[1743249806585,0.95594971,600.88,600.44,0.27318107]
[1743249806784,0.95594971,600.88,600.43,0.27318107]
[1743249807184,0.95594971,600.87,600.43,0.27318107]
[1743249807690,0.845,600.89,600.42,0.28968617]
[1743249807889,0.845,600.89,600.43,0.27318107]
[1743249810793,1.062,600.88,600.42,0.28968617]
[1743249812794,0.95499147,600.87,600.42,0.28968617]
[1743249813095,0.95499147,600.86,600.42,0.28968617]
[1743249813289,0.95499147,600.86,600.1,1.23078804]
[1743249813491,0.95499147,600.86,600.11,0.27317803]
[1743249813688,1.062,600.88,600.42,0.28971391]
[1743249814189,1.062,600.88,600.1,1.23078804]
[1743249814396,0.95491899,600.87,600.42,0.2897115]
[1743249814589,0.95491899,600.86,600.1,1.23078804]
[1743249814790,0.95491899,600.86,600.11,0.27320215]
[1743249814993,0.95491899,600.86,600.42,0.28972476]
[1743249815189,0.95491899,600.85,600.05,1.23078804]
[1743249815390,0.95491899,600.85,600.06,0.60650137]
[1743249815597,0.95491899,600.85,600.42,0.289732]
[1743249815793,0.95491899,600.84,600.06,0.3333]
[1743249816196,0.95491899,600.83,600.42,0.289732]
[1743249816496,0.95491899,600.83,600.06,0.3333]
[1743249816697,1.062,600.88,600.42,0.28973441]
[1743249816897,0.95475934,600.87,600.42,0.28973441]
[1743249817198,0.95475934,600.87,600.06,0.3333]
[1743249817496,0.95475934,600.86,600.42,0.28972959]
[1743249817793,0.95475934,600.86,600.06,0.3333]
[1743249817991,0.95475934,600.86,600.42,1.15373079]
[1743249818199,0.95475934,600.85,600.42,0.864]
[1743249818401,1.062,600.88,600.43,0.27319463]
[1743249819095,1.23148699,600.87,600.42,1.15368738]
[1743249819300,2.18605882,600.86,600.42,0.864]
[1743249819499,1.23148699,600.85,600.42,0.864]
[1743249819699,0.95457183,600.86,600.42,0.864]
[1743249819893,1.23118803,600.85,600.42,0.864]
[1743249820097,2.18575986,600.84,600.42,0.864]
[1743249820299,0.95457183,600.84,600.42,0.864]
[1743249820697,0.95457183,600.83,600.42,0.864]
[1743249821600,0.95457183,600.82,600.42,0.864]
[1743249822001,0.95457183,600.81,600.42,0.864]
[1743249822596,1.23051227,600.8,600.42,0.864]
[1743249822803,1.23046334,600.79,600.42,0.864]
[1743249823001,0.95457183,600.8,600.42,0.864]
[1743249823200,1.23047186,600.79,600.42,0.864]
[1743249823401,1.23047186,600.78,600.42,0.864]
[1743249823601,1.23047186,600.77,600.42,0.864]
[1743249823801,1.97976859,600.76,600.42,0.864]
[1743249824001,1.97976859,600.75,600.42,0.864]
[1743249824203,1.97976859,600.74,600.42,0.864]
[1743249824502,1.97976859,600.73,600.42,0.864]
[1743249824702,1.97976859,600.72,600.42,0.864]
[1743249824898,1.97207117,600.71,600.42,0.864]
[1743249825103,0.74929673,600.7,600.42,0.864]
[1743249825304,0.95457183,600.73,600.42,0.864]
[1743249825305,0.74929673,600.69,600.42,0.864]
[1743249825501,0.74929673,600.68,600.42,0.864]
[1743249825804,0.95457183,600.73,600.42,0.864]
[1743249826004,0.95457183,600.67,600.42,0.864]
[1743249826204,0.95457183,600.66,600.42,0.864]
[1743249826803,0.95457183,600.65,600.42,0.864]
[1743249827204,0.95457183,600.64,600.42,0.864]
[1743249827605,0.95457183,600.63,600.42,0.864]
[1743249828401,0.95457183,600.62,600.42,0.864]
[1743249828806,0.95457183,600.61,600.42,0.864]
[1743249829203,0.95457183,600.6,600.42,0.864]
[1743249829905,1.282,600.71,600.42,0.864]
[1743249830509,0.95112771,600.7,600.42,0.864]
[1743249831203,0.95112771,600.69,600.42,0.864]
[1743249831705,0.95112771,600.68,600.42,0.864]
[1743249832102,0.95112771,600.68,600.29,1.052]
[1743249832308,0.95112771,600.67,600.29,1.052]
[1743249833307,0.95112771,600.66,600.29,1.052]
[1743249834109,0.95112771,600.65,600.29,1.052]
[1743249834714,0.95112771,600.64,600.29,1.052]
[1743249835203,0.95112771,600.63,600.29,1.052]
[1743249836002,0.95112771,600.62,600.29,1.052]
[1743249836604,0.95112771,600.61,600.29,1.052]
[1743249837008,1.282,600.71,600.29,1.052]
[1743249837209,1.22526902,600.7,600.29,1.052]
[1743249837515,2.17528115,600.69,600.29,1.052]
[1743249837811,1.22572592,600.68,600.29,1.052]
[1743249838112,1.22572592,600.67,600.29,1.052]
[1743249838312,1.22572592,600.66,600.29,1.052]
[1743249838608,1.22572592,600.65,600.29,1.052]
[1743249838815,0.95001213,600.66,600.29,1.052]
[1743249839115,2.17634397,600.65,600.29,1.052]
[1743249839311,0.95001213,600.65,600.29,1.052]
[1743249839715,0.95001213,600.64,600.29,1.052]
[1743249840517,0.95001213,600.63,600.3,0.27298346]
[1743249840908,0.95001213,600.63,600.29,1.052]
[1743249841111,0.95001213,600.62,600.29,1.052]
[1743249841515,1.282,600.71,600.29,1.052]
[1743249841713,1.2262237,600.7,600.29,1.052]
[1743249841916,1.2262237,600.69,600.29,1.052]
[1743249842118,1.2262237,600.68,600.29,1.052]
[1743249842323,0.95056903,600.69,600.29,1.052]
[1743249842522,1.2261224,600.68,600.29,1.052]
[1743249842820,0.95056903,600.68,600.29,1.052]
[1743249843123,0.95056903,600.67,600.29,1.052]
[1743249843321,1.22591832,600.66,600.29,1.052]
[1743249843523,1.97245962,600.65,600.29,1.052]
[1743249843717,1.97238947,600.64,600.29,1.052]
[1743249844022,1.22591832,600.63,600.29,1.052]
[1743249844224,1.22591832,600.62,600.29,1.052]
[1743249844424,1.22591832,600.61,600.29,1.052]
[1743249844626,0.95056903,600.63,600.29,1.052]
[1743249844820,0.95056903,600.6,600.29,1.052]
[1743249845526,1.282,600.71,600.29,1.052]
[1743249845726,1.22567863,600.7,600.29,1.052]
[1743249845918,0.95018008,600.69,600.29,1.052]
[1743249846125,0.95018008,600.69,600.3,0.27296399]
[1743249846723,0.95018008,600.68,600.3,0.27296399]
[1743249847527,1.282,600.71,600.3,0.27296399]
[1743249847727,0.95046651,600.7,600.3,0.27296399]
[1743249848427,0.95046651,600.69,600.3,0.27296399]
[1743249848620,1.22613314,600.68,600.3,0.27296399]
[1743249848822,0.95046651,600.69,600.3,0.27296399]
[1743249849126,2.17651779,600.68,600.29,1.052]
[1743249849325,0.95046651,600.68,600.29,1.052]
[1743249850226,1.089,600.77,600.29,1.052]
[1743249852824,1.089,600.77,600.29,2.145]
[1743249855830,1.328,600.76,600.29,2.145]
[1743249857530,2.18578322,600.75,600.29,2.145]
[1743249857731,1.2311965,600.74,600.29,2.145]
[1743249857927,1.2311965,600.73,600.29,2.145]
[1743249858127,1.2311965,600.72,600.29,2.145]
[1743249858328,1.23145203,600.71,600.29,2.145]
[1743249858530,1.23145203,600.7,600.29,2.145]
[1743249858726,0.95458672,600.69,600.29,2.145]
[1743249859126,0.95458672,600.68,600.29,2.145]
[1743249859724,0.95458672,600.67,600.29,2.145]
[1743249859930,0.95458672,600.66,600.29,2.145]
[1743249860327,1.218,600.65,600.29,2.145]
[1743249866636,1.218,600.65,600.3,0.27293586]
[1743249866936,1.23213344,600.64,600.29,2.145]
[1743249867236,1.23213344,600.63,600.29,1.093]
[1743249867430,1.23213344,600.62,600.29,1.093]
[1743249867632,0.95526489,600.63,600.29,1.093]
[1743249867834,1.218,600.65,600.29,1.093]
[1743249867835,0.95526489,600.61,600.29,1.093]
[1743249868732,0.95526489,600.6,600.29,1.093]
[1743249869129,2.18751893,600.59,600.29,1.093]
[1743249869328,1.23225404,600.58,600.29,1.093]
[1743249869535,2.18751893,600.57,600.29,1.093]
[1743249869737,0.95526489,600.57,600.29,1.093]
[1743249870239,0.95526489,600.56,600.29,1.093]
[1743249870539,0.95526489,600.55,600.29,1.093]
[1743249871145,0.95526489,600.54,600.29,1.093]
[1743249871343,1.218,600.65,600.29,1.093]
[1743249871645,2.18995908,600.64,600.29,1.093]
[1743249871837,1.23389972,600.63,600.29,1.093]
[1743249872042,2.19026723,600.62,600.29,1.093]
[1743249872343,1.23374005,600.61,600.29,1.093]
[1743249872543,1.23374005,600.6,600.29,1.093]
[1743249872844,2.94171276,600.59,600.29,1.093]
[1743249873048,1.98534525,600.58,600.29,1.093]
[1743249873246,2.19010756,600.57,600.29,1.093]
[1743249873546,1.23374005,600.56,600.29,1.093]
[1743249873744,1.23374005,600.55,600.29,1.093]
[1743249873941,2.19010756,600.54,600.29,1.093]
[1743249874144,0.95636751,600.54,600.29,1.093]
[1743249874343,1.23411372,600.53,600.29,1.093]
[1743249874545,0.95636751,600.54,600.29,1.093]
[1743249874546,1.23411372,600.52,600.29,1.093]
[1743249874839,0.95636751,600.54,600.29,1.093]
[1743249875045,0.95636751,600.52,600.29,1.093]
[1743249875240,0.95636751,600.53,600.29,1.093]
[1743249875842,0.95636751,600.52,600.29,1.093]
[1743249876248,0.95636751,600.51,600.29,1.093]
[1743249877048,0.95636751,600.5,600.29,1.093]
[1743249877443,0.95636751,600.49,600.07,0.28982852]
[1743249877646,0.95636751,600.49,600.08,0.27299157]
[1743249877842,1.153,600.51,600.08,0.27299157]
[1743249881154,1.98720108,600.5,600.13,1.23078804]
[1743249881352,1.98720108,600.49,600.13,1.23078804]
[1743249881547,1.98720108,600.48,600.13,1.23078804]
[1743249881747,2.19246669,600.47,600.13,1.23078804]
[1743249881950,1.9872233,600.46,600.13,1.23078804]
[1743249882150,0.95751493,600.47,600.13,1.23078804]
[1743249882351,1.98748347,600.46,600.13,1.23078804]
[1743249882648,1.23508653,600.45,600.13,1.23078804]
[1743249882845,1.23508653,600.44,600.13,1.23078804]
[1743249883050,1.23508653,600.43,600.13,1.23078804]
[1743249883246,1.23508653,600.42,600.13,1.23078804]
[1743249883453,0.95751493,600.43,599.96,0.28988042]
[1743249883648,2.19250841,600.42,599.96,0.28988042]
[1743249883954,0.95751493,600.42,599.96,0.28988042]
[1743249884753,0.95751493,600.41,599.96,0.28988042]
[1743249884956,0.95751493,600.4,599.96,0.28988042]
[1743249885455,0.95751493,600.4,599.64,1.23078804]
[1743249885649,1.153,600.51,599.96,0.28992631]
[1743249885850,1.98699872,600.5,599.65,0.33352789]
[1743249886156,1.70950656,600.49,599.97,0.886]
[1743249886355,1.23479138,600.48,599.97,0.886]
[1743249886555,0.95736823,600.49,599.97,0.886]
[1743249886556,1.23479138,600.47,599.97,0.886]
[1743249886758,1.23479138,600.46,599.97,0.886]
[1743249886956,1.23479138,600.45,599.97,0.886]
[1743249887258,1.23466046,600.44,599.97,0.886]
[1743249887461,0.95736823,600.44,599.97,0.886]
[1743249887852,0.95736823,600.43,599.97,0.886]
[1743249888456,2.19172511,600.42,599.97,0.886]
[1743249888657,1.23435688,600.41,599.97,0.886]
[1743249888858,1.23435688,600.4,599.97,0.886]
[1743249889061,1.23435688,600.39,599.97,0.886]
[1743249889258,1.23435688,600.38,599.97,0.886]
[1743249889463,2.19140572,600.37,599.97,0.886]
[1743249889765,1.23403749,600.36,599.97,0.886]
[1743249889963,1.23403749,600.35,599.97,0.886]
[1743249890161,0.95736823,600.35,599.97,0.886]
[1743249890558,0.95736823,600.34,599.97,0.886]
[1743249890763,1.23412502,600.33,599.97,0.886]
[1743249890957,1.23412502,600.32,599.98,0.2731031]
[1743249891160,1.23412502,600.31,599.98,0.2731031]
[1743249891361,0.95736823,600.31,599.98,0.2731031]
[1743249891664,0.95736823,600.3,599.98,0.2731031]
[1743249891859,1.23386903,600.29,599.97,0.886]
[1743249892058,1.23386903,600.28,599.97,0.886]
[1743249892263,0.95736823,600.29,599.97,0.886]
[1743249892764,0.95736823,600.28,599.97,0.886]
[1743249893261,0.95736823,600.27,599.97,0.886]
[1743249893664,0.95736823,600.26,599.97,0.886]
[1743249894263,1.20219493,600.44,599.97,0.886]
[1743249894463,3.18617971,600.43,599.97,0.886]
[1743249894659,1.98398478,600.42,599.97,0.886]
[1743249894865,1.98398478,600.41,599.97,0.886]
[1743249895068,1.98398478,600.4,599.97,0.886]
[1743249895266,2.93975721,600.39,599.97,0.886]
[1743249895566,1.98398478,600.38,599.97,0.886]
[1743249895866,1.153,600.51,599.97,0.886]
[1743249895867,2.18871174,600.37,599.97,0.886]
[1743249896066,1.23293931,600.36,599.97,0.886]
[1743249896267,1.23205761,600.35,599.97,0.886]
[1743249896465,1.23205761,600.34,599.97,0.886]
[1743249896666,2.18783004,600.33,599.97,0.886]
[1743249896862,1.23205761,600.32,599.97,0.886]
[1743249897067,1.23205761,600.31,599.97,0.886]
[1743249897267,1.23205761,600.3,599.97,0.886]
[1743249897467,1.23205761,600.29,599.97,0.886]
[1743249897669,0.95577243,600.28,599.97,0.886]
[1743249898066,0.95577243,600.27,599.97,0.886]
[1743249898763,0.95577243,600.26,599.97,0.886]
[1743249899667,1.94956234,600.43,599.97,0.886]
[1743249899868,3.17996779,600.42,599.97,0.886]
[1743249900168,3.17920151,600.41,599.97,0.886]
[1743249900365,1.98012873,600.4,599.97,0.886]
[1743249900563,1.98012873,600.39,599.97,0.886]
[1743249900774,1.98012873,600.38,599.97,0.886]
[1743249900963,1.98012873,600.37,599.97,0.886]
[1743249901166,1.98012873,600.36,599.97,0.886]
[1743249901366,1.98012873,600.35,599.97,0.886]
[1743249901671,2.93254454,600.34,599.97,0.886]
[1743249901868,1.97863468,600.33,599.97,0.886]
[1743249902062,1.22959768,600.32,599.97,0.886]
[1743249902263,2.18350754,600.31,599.97,0.886]
[1743249902464,1.22959768,600.3,599.97,0.886]
[1743249902668,1.22959768,600.29,599.97,0.886]
[1743249902868,1.22959768,600.28,599.97,0.886]
[1743249903068,0.95390986,600.29,599.97,0.886]
[1743249903263,1.22880138,600.28,599.97,0.886]
[1743249903470,0.95390986,600.29,599.97,0.886]
[1743249903664,0.95390986,600.28,599.97,0.886]
[1743249903971,2.12190986,600.28,599.97,0.886]
[1743249904667,1.168,600.28,599.97,0.886]
[1743249906968,1.168,600.28,599.98,0.27308142]
[1743249910274,1.168,600.28,599.97,0.886]
[1743249910573,1.168,600.28,599.98,0.27308164]
[1743249912074,1.168,600.28,599.97,0.886]
[1743249913874,1.205,600.27,599.97,0.886]
[1743249914074,1.205,600.27,599.9,0.28992752]
[1743249914382,1.205,600.27,599.91,0.27307566]
[1743249916181,1.205,600.27,599.96,1.23078804]
[1743249916382,1.205,600.27,599.97,0.27307566]
[1743249919385,1.205,600.27,600.02,1.23078804]
[1743249919683,1.205,600.27,600.03,0.27307566]
[1743249920984,1.205,600.27,600.02,1.23078804]
[1743249921186,1.205,600.27,600.03,1.5038163]
[1743249921382,1.205,600.27,600.04,0.27302826]
[1743249923594,1.205,600.27,600.03,0.27302826]
[1743249923891,1.205,600.27,600.04,0.27302826]
[1743249924093,1.205,600.27,600.03,0.27302826]
[1743249924292,1.205,600.27,600.04,0.27302826]
[1743249924587,1.205,600.27,600.05,0.27302826]
[1743249924787,1.205,600.27,600.03,0.27302826]
[1743249924994,1.205,600.27,600.04,0.27302826]
[1743249925193,3.18089301,600.73,600.02,0.27302826]
[1743249925392,3.18089301,600.72,600.02,0.27302826]
[1743249925594,3.18089301,600.71,600.02,0.27302826]
[1743249925788,3.18089301,600.7,600.02,0.27302826]
[1743249925995,3.18089301,600.69,600.02,0.27302826]
[1743249926195,1.9805136,600.68,600.02,0.27302826]
[1743249926392,1.9805136,600.67,600.03,0.27298131]
[1743249926590,1.9805136,600.66,600.02,0.27298131]
[1743249926791,1.23027647,600.65,600.02,0.27298131]
[1743249926991,1.23027647,600.64,600.02,0.27298131]
[1743249927192,1.23027647,600.63,600.02,0.27298131]
[1743249927392,1.23027647,600.62,600.02,0.27298131]
[1743249927597,0.95607925,600.62,600.06,1.23078804]
[1743249927895,0.95607925,600.62,600.07,0.27298131]
[1743249928095,0.95607925,600.61,600.07,0.27298131]
[1743249928293,0.95607925,600.6,600.07,0.27298131]
[1743249928893,0.95607925,600.59,600.07,0.27298131]
[1743249929993,0.95607925,600.58,600.07,0.27298131]
[1743249930197,0.95607925,600.58,600.06,0.27298131]
[1743249930498,0.95607925,600.58,600.07,0.27298131]
[1743249930696,1.95586597,601.41,600.06,0.27298131]
[1743249930895,0.33256289,601.39,600.07,0.27298131]
[1743249931094,3.49736042,601.38,600.06,0.27298131]
[1743249931296,0.33257948,601.36,600.07,0.27298131]
[1743249931491,3.19139751,601.35,600.06,0.27298131]
[1743249931696,3.52398805,601.34,600.06,0.27298131]
[1743249931898,3.52399358,601.33,600.06,0.27298131]
[1743249932096,3.52399911,601.32,600.06,0.27298131]
[1743249932396,3.52400465,601.31,600.1,1.23078804]
[1743249932599,4.4818568,601.3,600.11,0.27298131]
[1743249932899,3.52401571,601.29,600.11,0.27298131]
[1743249933097,3.52402124,601.28,600.11,0.27298131]
[1743249933299,4.48187339,601.27,600.11,0.27298131]
[1743249933500,3.52403231,601.26,600.11,0.27298131]
[1743249933700,3.52403784,601.25,600.11,0.27298131]
[1743249933901,3.19139751,601.24,600.11,0.27298131]
[1743249934201,3.19139751,601.23,600.11,0.27298131]
[1743249934409,3.19139751,601.22,600.11,0.27298131]
[1743249934700,3.52405997,601.21,600.11,0.27298131]
[1743249935001,3.5240655,601.2,600.11,0.27298131]
[1743249935201,3.52407104,601.19,600.12,0.2729204]
[1743249935395,3.19139751,601.18,600.11,0.2729204]
[1743249935599,3.5240821,601.17,600.11,0.2729204]
[1743249935799,3.19139751,601.16,600.12,0.2729204]
[1743249936000,3.19139751,601.15,600.09,0.2729204]
[1743249936197,3.19139751,601.14,600.1,0.2729204]
[1743249936398,3.19139751,601.13,600.09,0.2729204]
[1743249936597,3.19139751,601.12,600.1,0.2729204]
[1743249936798,3.19139751,601.11,600.08,1.52052124]
[1743249937104,3.19139751,601.1,600.09,0.27292611]
[1743249937298,3.19139751,601.09,600.09,0.27292611]
[1743249937501,3.19139751,601.08,600.09,0.27292611]
[1743249937798,0.33268459,601.17,600.09,0.27292611]
[1743249937799,4.14924413,601.07,600.09,0.27292611]
[1743249938004,3.19139751,601.06,600.09,0.27292611]
[1743249938303,3.19139751,601.05,600.09,0.27292611]
[1743249938498,3.19139751,601.04,600.09,0.27292611]
[1743249938698,3.19139751,601.03,600.15,1.23078804]
[1743249938903,4.14924413,601.02,600.15,1.23078804]
[1743249939105,3.19139751,601.01,600.15,1.23078804]
[1743249939306,3.19139751,601.0,600.15,1.23078804]
[1743249939501,3.19139751,600.99,600.15,1.23078804]
[1743249939704,3.19139751,600.98,600.15,1.23078804]
[1743249939903,4.14924413,600.97,600.15,1.23078804]
[1743249940205,3.19139751,600.96,600.15,1.23078804]
[1743249940406,3.19139751,600.95,600.15,2.36078804]
[1743249940602,3.19139751,600.94,600.15,2.36078804]
[1743249940803,3.19139751,600.93,600.15,2.36078804]
[1743249941004,4.14924413,600.92,600.15,1.13]
[1743249941203,3.19139751,600.91,600.15,1.13]
[1743249941399,3.19139751,600.9,600.15,1.13]
[1743249941604,3.19139751,600.89,600.15,1.13]
[1743249941803,3.19139751,600.88,600.15,1.13]
[1743249942001,3.19139751,600.87,600.15,1.13]
[1743249942206,3.19139751,600.86,600.15,1.13]
[1743249942407,3.19139751,600.85,600.15,1.13]
[1743249942607,3.19139751,600.84,600.15,1.13]
[1743249942801,3.19139751,600.83,600.15,1.13]
[1743249943101,4.14924413,600.82,600.15,1.13]
[1743249943307,3.19139751,600.81,600.15,1.13]
[1743249943510,1.98809123,600.8,600.15,1.13]
[1743249943807,2.94449389,600.79,600.15,1.13]
[1743249944006,1.9872684,600.78,600.15,1.13]
[1743249944208,1.9872684,600.77,600.15,1.13]
[1743249944409,1.9872684,600.76,600.16,0.27293897]
[1743249944603,1.23470871,600.75,600.16,0.27293897]
[1743249944802,1.23470871,600.74,600.16,0.27293897]
[1743249945001,0.95722549,600.73,600.16,0.27293897]
[1743249945602,0.95722549,600.72,600.15,1.13]
[1743249945909,0.984,600.71,600.16,0.27290947]
[1743249946205,0.984,600.71,600.17,1.23078804]
[1743249946508,0.984,600.71,600.18,0.27290947]
[1743249947509,0.984,600.71,600.17,1.23078804]
[1743249947708,0.984,600.71,600.18,0.27285895]
[1743249948509,0.984,600.71,600.25,1.23078804]
[1743249948808,0.984,600.71,600.26,0.27285895]
[1743249950413,0.984,600.71,600.34,1.23078804]
[1743249950711,0.984,600.71,600.35,0.27285895]
[1743249953008,0.984,600.71,600.34,0.27285895]
[1743249958016,0.984,600.71,600.33,1.23078804]
[1743249958211,0.984,600.71,600.38,1.23078804]
[1743249958413,0.984,600.71,600.39,0.27283834]
[1743249959815,0.984,600.71,600.4,0.27283807]
[1743249960013,0.984,600.71,600.39,0.27283807]
[1743249960223,0.984,600.71,600.42,1.23078804]
[1743249960417,0.984,600.71,600.43,0.27283807]
[1743249961120,0.984,600.71,600.42,1.23078804]
[1743249961320,0.984,600.71,600.43,0.27284002]
[1743249963016,0.984,600.71,600.44,1.23078804]
[1743249963214,0.984,600.71,600.45,0.27284002]
[1743249963424,0.984,600.71,600.46,0.27283381]
[1743249963625,0.984,600.71,600.45,0.27283381]
[1743249963826,0.984,600.71,600.46,0.27283381]
[1743249964128,0.984,600.71,600.47,0.27283381]
[1743249964326,0.984,600.71,600.45,0.27283381]
[1743249964629,0.984,600.71,600.44,1.23078804]
[1743249964825,0.984,600.71,600.45,0.27282331]
[1743249965329,0.984,600.71,600.46,1.23078804]
[1743249965522,0.984,600.71,600.47,0.27282331]
[1743249966527,0.984,600.71,600.46,1.23078804]
[1743249968029,0.984,600.71,600.36,0.28971029]
[1743249968030,0.984,600.71,600.43,1.23078804]
[1743249969935,0.984,600.71,600.38,0.28970426]
[1743249970734,0.984,600.71,600.39,1.345]
[1743249972037,1.341,600.7,600.4,0.2727826]
[1743249973735,2.483,600.7,600.4,0.2727826]
[1743249974640,3.79,600.7,600.49,1.23078804]
[1743249975037,3.79,600.7,600.5,0.2727826]
[1743249975841,3.79,600.7,600.51,0.27273563]
[1743249976038,3.79,600.7,600.52,0.27273563]
[1743249976235,3.79,600.7,600.53,0.27273563]
[1743249976435,3.79,600.7,600.54,0.27273563]
[1743249976635,3.79,600.7,600.49,1.23078804]